fUSD/lending_fUSD_20260611
["ID","MTS","AMOUNT","RATE_DAILY","PERIOD"]
[424791599,1781166648000,-1000.0,0.0003,2]
[424791619,1781166648000,-1000.0,0.00030171,2]
[424791645,1781166648000,-152.0,0.00030176,7]
[424791592,1781166648000,-150.0,0.0003,2]
[424791594,1781166648000,-271.53,0.0003,2]
[424791593,1781166648000,-6929.84,0.0003,2]
[424791595,1781166648000,-369.3169676,0.0003,30]
[424791596,1781166648000,-650.0,0.0003,2]
[424791598,1781166648000,-2168.51796793,0.0003,120]
[424791607,1781166648000,-879.53,0.00030137,30]
[424791608,1781166648000,-979.61,0.00030137,30]
[424791602,1781166648000,-5228.08,0.0003004,7]
[424791601,1781166648000,-350.0,0.00030032,3]
[424791606,1781166648000,-152.0,0.00030137,120]
[424791618,1781166648000,-1000.0,0.00030171,2]
[424791604,1781166648000,-523.39,0.00030137,5]
[424791603,1781166648000,-300.17486916,0.00030074,30]
[424791605,1781166648000,-223.7425,0.00030137,13]
[424791597,1781166648000,-350.0,0.0003,15]
[424791609,1781166648000,-1000.0,0.00030171,2]
[424791610,1781166648000,-1000.0,0.00030171,2]
[424791616,1781166648000,-1000.0,0.00030171,2]
[424791614,1781166648000,-1000.0,0.00030171,2]
[424791612,1781166648000,-1000.0,0.00030171,2]
[424791617,1781166648000,-1000.0,0.00030171,2]
[424791611,1781166648000,-1000.0,0.00030171,2]
[424791613,1781166648000,-1000.0,0.00030171,2]
[424791615,1781166648000,-1000.0,0.00030171,2]
[424791600,1781166648000,-224.03352082,0.0003,16]
[424791647,1781166648000,-152.0,0.00030176,7]
[424791694,1781166648000,-159.1022608,0.00030201,7]
[424791652,1781166648000,-151.0,0.00030176,7]
[424791685,1781166648000,-2170.91192201,0.000302,2]
[424791680,1781166648000,-182.94161993,0.00030199,7]
[424791689,1781166648000,-167.51957351,0.00030201,7]
[424791688,1781166648000,-212.41417011,0.00030201,7]
[424791679,1781166648000,-150.87114389,0.00030199,7]
[424791686,1781166648000,-2052.3712962,0.000302,2]
[424791687,1781166648000,-394.32750378,0.00030201,7]
[424791678,1781166648000,-171.04982114,0.00030199,7]
[424791692,1781166648000,-224.6116695,0.00030201,7]
[424791698,1781166648000,-251.0,0.00030203,30]
[424791696,1781166648000,-202.05758571,0.00030201,7]
[424791702,1781166648000,-262.0,0.00030203,30]
[424791683,1781166648000,-411.61137125,0.00030199,7]
[424791699,1781166648000,-441.0,0.00030203,30]
[424791697,1781166648000,-186.65434097,0.00030201,7]
[424791691,1781166648000,-241.3309455,0.00030201,7]
[424791701,1781166648000,-313.0,0.00030203,30]
[424791690,1781166648000,-264.7728823,0.00030201,7]
[424791693,1781166648000,-336.2174538,0.00030201,2]
[424791703,1781166648000,-990.0,0.00030203,30]
[424791705,1781166648000,-319.0,0.00030203,30]
[424791707,1781166648000,-838.0,0.00030203,30]
[424791706,1781166648000,-185.0,0.00030203,30]
[424791704,1781166648000,-1461.0,0.00030203,30]
[424791708,1781166648000,-318.0,0.00030203,30]
[424791648,1781166648000,-152.0,0.00030176,7]
[424791695,1781166648000,-228.23672635,0.00030201,7]
[424791684,1781166648000,-2054.95234238,0.000302,2]
[424791700,1781166648000,-246.0,0.00030203,30]
[424791681,1781166648000,-179.2791174,0.00030199,7]
[424791682,1781166648000,-186.64768682,0.00030199,7]
[424791653,1781166648000,-151.0,0.00030176,7]
[424791659,1781166648000,-301.16322638,0.00030176,7]
[424791655,1781166648000,-151.0,0.00030176,7]
[424791654,1781166648000,-151.0,0.00030176,7]
[424791663,1781166648000,-239.86784136,0.00030182,7]
[424791661,1781166648000,-2110.0,0.00030176,2]
[424791657,1781166648000,-151.0,0.00030176,7]
[424791660,1781166648000,-151.94160012,0.00030176,7]
[424791656,1781166648000,-151.0,0.00030176,7]
[424791662,1781166648000,-701.0,0.00030179,2]
[424791658,1781166648000,-151.0,0.00030176,7]
[424791664,1781166648000,-343.03237637,0.00030186,7]
[424791666,1781166648000,-746.72331326,0.00030186,7]
[424791651,1781166648000,-151.0,0.00030176,7]
[424791677,1781166648000,-409.94438661,0.00030199,7]
[424791669,1781166648000,-339.52999917,0.00030187,7]
[424791673,1781166648000,-461.84133868,0.00030187,7]
[424791675,1781166648000,-450.73713678,0.00030187,7]
[424791670,1781166648000,-551.86104986,0.00030187,7]
[424791671,1781166648000,-602.30049902,0.00030187,7]
[424791674,1781166648000,-863.75811152,0.00030187,7]
[424791667,1781166648000,-623.02998895,0.00030186,7]
[424791676,1781166648000,-152.0,0.00030197,7]
[424791665,1781166648000,-573.99805715,0.00030186,7]
[424791668,1781166648000,-604.23319917,0.00030187,7]
[424791672,1781166648000,-613.85901564,0.00030187,7]
[424791750,1781166649000,-376.2690771,0.00030288,7]
[424791744,1781166649000,-871.76316465,0.00030288,7]
[424791743,1781166649000,-621.08352294,0.00030288,7]
[424791748,1781166649000,-411.62560579,0.00030288,7]
[424791745,1781166649000,-370.77362935,0.00030288,7]
[424791739,1781166649000,-436.16997529,0.00030288,7]
[424791751,1781166649000,-726.49477528,0.00030288,7]
[424791741,1781166649000,-216.48070196,0.00030288,7]
[424791752,1781166649000,-693.04536312,0.00030288,7]
[424791742,1781166649000,-151.6727602,0.00030288,7]
[424791749,1781166649000,-792.05196052,0.00030288,7]
[424791736,1781166649000,-686.14275486,0.00030288,7]
[424791747,1781166649000,-715.11222526,0.00030288,7]
[424791746,1781166649000,-476.42859459,0.00030288,7]
[424791763,1781166649000,-650.0,0.00030525,13]
[424791755,1781166649000,-506.6549885,0.00030288,7]
[424791756,1781166649000,-612.19050757,0.00030288,7]
[424791754,1781166649000,-480.66986598,0.00030288,7]
[424791757,1781166649000,-422.96297041,0.00030288,7]
[424791762,1781166649000,-167.68,0.000305,7]
[424791759,1781166649000,-2324.0,0.00030291,3]
[424791758,1781166649000,-693.51430827,0.00030288,7]
[424791761,1781166649000,-150.0,0.00030449,7]
[424791760,1781166649000,-227.68999999,0.00030411,30]
[424791764,1781166649000,-228.0,0.0003056,10]
[424791766,1781166649000,-1286.35335135,0.00030571,7]
[424791765,1781166649000,-2596.10301926,0.00030571,7]
[424791753,1781166649000,-650.02444525,0.00030288,7]
[424791730,1781166649000,-664.21409092,0.00030288,7]
[424791709,1781166649000,-310.926811,0.00030204,7]
[424791737,1781166649000,-359.94324383,0.00030288,7]
[424791776,1781166649000,-250.0,0.00030796,7]
[424791715,1781166649000,-1227.0,0.00030226,2]
[424791712,1781166649000,-302.42415251,0.00030222,7]
[424791713,1781166649000,-382.0,0.00030226,2]
[424791710,1781166649000,-164.61093754,0.00030222,7]
[424791714,1781166649000,-1274.0,0.00030226,2]
[424791711,1781166649000,-342.52552008,0.00030222,7]
[424791717,1781166649000,-331.4,0.00030239,2]
[424791728,1781166649000,-1066.05940374,0.00030288,7]
[424791719,1781166649000,-310.0,0.00030254,30]
[424791727,1781166649000,-616.89470207,0.00030288,5]
[424791718,1781166649000,-324.10209189,0.00030245,7]
[424791716,1781166649000,-6076.0,0.00030226,2]
[424791720,1781166649000,-342.0,0.00030254,30]
[424791724,1781166649000,-185.52693481,0.00030276,7]
[424791726,1781166649000,-633.59719208,0.00030288,7]
[424791723,1781166649000,-812.32885818,0.00030276,7]
[424791721,1781166649000,-1066.0,0.00030254,30]
[424791725,1781166649000,-519.89096436,0.00030288,7]
[424791722,1781166649000,-152.0,0.00030266,7]
[424791729,1781166649000,-404.10187329,0.00030288,7]
[424791732,1781166649000,-221.09431587,0.00030288,7]
[424791734,1781166649000,-154.40572779,0.00030288,5]
[424791731,1781166649000,-430.05701229,0.00030288,7]
[424791740,1781166649000,-809.41910769,0.00030288,7]
[424791733,1781166649000,-1056.29701351,0.00030288,7]
[424791735,1781166649000,-611.20414135,0.00030288,2]
[424791738,1781166649000,-816.16526994,0.00030288,7]
[424791768,1781166649000,-1779.35,0.00030676,2]
[424791784,1781166649000,-764.00517669,0.00030866,2]
[424791767,1781166649000,-1424.50237251,0.00030641,7]
[424791803,1781166649000,-215.95576085,0.00031,3]
[424791805,1781166649000,-151.0,0.00031,7]
[424791814,1781166649000,-151.0,0.00031,7]
[424791806,1781166649000,-151.0,0.00031,7]
[424791807,1781166649000,-151.0,0.00031,7]
[424791811,1781166649000,-711.920535,0.00031,7]
[424791810,1781166649000,-711.920535,0.00031,7]
[424791812,1781166649000,-711.920535,0.00031,7]
[424791808,1781166649000,-151.0,0.00031,7]
[424791809,1781166649000,-711.920535,0.00031,7]
[424791813,1781166649000,-151.0,0.00031,7]
[424791815,1781166649000,-151.0,0.00031,7]
[424791816,1781166649000,-300.778636,0.00031,7]
[424791826,1781166649000,-151.0,0.00031,7]
[424791817,1781166649000,-151.0,0.00031,7]
[424791819,1781166649000,-151.0,0.00031,7]
[424791818,1781166649000,-151.0,0.00031,7]
[424791820,1781166649000,-151.0,0.00031,7]
[424791825,1781166649000,-1050.408206,0.00031,7]
[424791824,1781166649000,-1050.408206,0.00031,7]
[424791821,1781166649000,-151.0,0.00031,7]
[424791823,1781166649000,-1050.408206,0.00031,7]
[424791822,1781166649000,-1050.408206,0.00031,7]
[424791827,1781166649000,-491.06,0.00031,7]
[424791830,1781166649000,-1881.019781,0.00031,7]
[424791829,1781166649000,-1881.019781,0.00031,7]
[424791774,1781166649000,-250.0,0.00030796,7]
[424791804,1781166649000,-151.0,0.00031,7]
[424791796,1781166649000,-2500.0,0.00031,32]
[424791831,1781166649000,-1881.019781,0.00031,7]
[424791797,1781166649000,-419802.04405904,0.00031,5]
[424791799,1781166649000,-6000.0,0.00031,10]
[424791771,1781166649000,-165.68191016,0.00030709,2]
[424791770,1781166649000,-211.0,0.00030705,2]
[424791773,1781166649000,-778.78748619,0.00030762,7]
[424791772,1781166649000,-178.6524784,0.0003075,120]
[424791777,1781166649000,-55784.840692,0.000308,3]
[424791779,1781166649000,-1015.41107272,0.00030853,7]
[424791828,1781166649000,-1881.019781,0.00031,7]
[424791782,1781166649000,-830.26761365,0.00030866,7]
[424791781,1781166649000,-1332.57425468,0.00030866,7]
[424791788,1781166649000,-893.89028158,0.00030866,7]
[424791785,1781166649000,-857.67844358,0.00030866,7]
[424791780,1781166649000,-791.9964901,0.00030866,7]
[424791783,1781166649000,-1320.37126688,0.00030866,7]
[424791769,1781166649000,-227.68999999,0.00030685,30]
[424791787,1781166649000,-776.35440368,0.00030866,7]
[424791786,1781166649000,-1020.20658742,0.00030866,7]
[424791794,1781166649000,-50000.0,0.00031,9]
[424791795,1781166649000,-5139.0,0.00031,7]
[424791793,1781166649000,-227.69,0.00030959,30]
[424791791,1781166649000,-866.89288534,0.00030866,7]
[424791792,1781166649000,-160.0,0.00030913,3]
[424791798,1781166649000,-160.0,0.00031,120]
[424791800,1781166649000,-2550.0,0.00031,120]
[424791789,1781166649000,-866.3067039,0.00030866,7]
[424791801,1781166649000,-2550.0,0.00031,120]
[424791790,1781166649000,-812.53055657,0.00030866,7]
[424791778,1781166649000,-150.0,0.00030841,2]
[424791802,1781166649000,-2503.0,0.00031,120]
[424791875,1781166650000,-800.0,0.00031233,11]
[424791871,1781166650000,-579.34,0.00031233,7]
[424791873,1781166650000,-800.0,0.00031233,11]
[424791870,1781166650000,-282.43,0.00031214,30]
[424791867,1781166650000,-185.0,0.00031203,30]
[424791877,1781166650000,-800.0,0.00031233,11]
[424791862,1781166650000,-313.0,0.00031203,30]
[424791861,1781166650000,-246.0,0.00031203,30]
[424791863,1781166650000,-262.0,0.00031203,30]
[424791866,1781166650000,-319.0,0.00031203,30]
[424791868,1781166650000,-838.0,0.00031203,30]
[424791865,1781166650000,-1461.0,0.00031203,30]
[424791881,1781166650000,-150.0,0.00031234,2]
[424791874,1781166650000,-800.0,0.00031233,11]
[424791876,1781166650000,-800.0,0.00031233,11]
[424791872,1781166650000,-227.69,0.00031233,30]
[424791878,1781166650000,-800.0,0.00031233,11]
[424791880,1781166650000,-800.0,0.00031233,11]
[424791879,1781166650000,-800.0,0.00031233,11]
[424791882,1781166650000,-228.0,0.00031245,10]
[424791883,1781166650000,-310.0,0.00031254,30]
[424791889,1781166650000,-82799.5448776,0.000313,3]
[424791887,1781166650000,-350.0,0.00031268,5]
[424791886,1781166650000,-1575.74,0.00031256,25]
[424791885,1781166650000,-1066.0,0.00031254,30]
[424791857,1781166650000,-2054.95234238,0.000312,2]
[424791869,1781166650000,-318.0,0.00031203,30]
[424791888,1781166650000,-1575.74,0.0003127,25]
[424791842,1781166650000,-391.895786,0.00031,7]
[424791859,1781166650000,-251.0,0.00031203,30]
[424791884,1781166650000,-342.0,0.00031254,30]
[424791832,1781166650000,-638.758781,0.00031,7]
[424791833,1781166650000,-638.758781,0.00031,7]
[424791834,1781166650000,-638.758781,0.00031,7]
[424791836,1781166650000,-151.0,0.00031,7]
[424791835,1781166650000,-638.758781,0.00031,7]
[424791837,1781166650000,-323.180915,0.00031,7]
[424791839,1781166650000,-323.180915,0.00031,7]
[424791838,1781166650000,-323.180915,0.00031,7]
[424791841,1781166650000,-391.895786,0.00031,7]
[424791852,1781166650000,-271.0,0.00031109,3]
[424791840,1781166650000,-323.180915,0.00031,7]
[424791856,1781166650000,-2000.0,0.000312,2]
[424791851,1781166650000,-1575.74,0.00031102,33]
[424791846,1781166650000,-151.0,0.00031,7]
[424791845,1781166650000,-151.0,0.00031,7]
[424791843,1781166650000,-391.895786,0.00031,7]
[424791849,1781166650000,-5000.0,0.0003106,2]
[424791848,1781166650000,-5018.95551406,0.0003106,2]
[424791850,1781166650000,-482.59,0.00031096,5]
[424791847,1781166650000,-151.0,0.00031,7]
[424791853,1781166650000,-650.0,0.00031152,14]
[424791854,1781166650000,-404.36685192,0.0003117,2]
[424791858,1781166650000,-2170.91192201,0.000312,2]
[424791864,1781166650000,-990.0,0.00031203,30]
[424791855,1781166650000,-1000.0,0.000312,7]
[424791844,1781166650000,-391.895786,0.00031,7]
[424791891,1781166650000,-3650.0,0.0003137,60]
[424791860,1781166650000,-441.0,0.00031203,30]
[424791894,1781166650000,-39307.0409578,0.000314,30]
[424791920,1781166650000,-950.39578812,0.00031732,7]
[424791931,1781166650000,-1040.27146241,0.00031732,7]
[424791926,1781166650000,-1224.24790491,0.00031732,7]
[424791933,1781166650000,-155.85898862,0.00031753,30]
[424791928,1781166650000,-1072.66833789,0.00031732,7]
[424791930,1781166650000,-975.03666788,0.00031732,7]
[424791929,1781166650000,-1039.56804467,0.00031732,7]
[424791925,1781166650000,-1029.2141323,0.00031732,7]
[424791927,1781166650000,-931.62528441,0.00031732,7]
[424791935,1781166650000,-227.69,0.00031781,30]
[424791932,1781166650000,-155.85898861,0.00031753,30]
[424791936,1781166650000,-1750.0,0.00031781,30]
[424791934,1781166650000,-650.0,0.00031778,14]
[424791938,1781166650000,-1750.0,0.00031781,30]
[424791937,1781166650000,-1750.0,0.00031781,30]
[424791940,1781166650000,-1750.0,0.00031781,30]
[424791939,1781166650000,-1750.0,0.00031781,30]
[424791942,1781166650000,-188.889999,0.000318,12]
[424791945,1781166650000,-500.0,0.0003182,60]
[424791947,1781166650000,-152.0,0.00031844,5]
[424791946,1781166650000,-350.0,0.0003182,4]
[424791944,1781166650000,-500.0,0.0003182,60]
[424791943,1781166650000,-1575.74,0.00031808,25]
[424791948,1781166650000,-314.26,0.000319,2]
[424791950,1781166650000,-1856.748,0.000319,30]
[424791949,1781166650000,-2013.14,0.000319,10]
[424791890,1781166650000,-1575.74,0.00031346,21]
[424791917,1781166650000,-5228.08,0.00031713,30]
[424791921,1781166650000,-1599.08910561,0.00031732,7]
[424791941,1781166650000,-1704.0,0.00031781,30]
[424791919,1781166650000,-1575.74,0.00031722,18]
[424791918,1781166650000,-1218.49328727,0.00031719,7]
[424791893,1781166650000,-3534.0,0.0003137,60]
[424791901,1781166650000,-1458.741,0.000315,10]
[424791892,1781166650000,-3650.0,0.0003137,60]
[424791896,1781166650000,-1595.4323596,0.00031434,2]
[424791897,1781166650000,-150.0,0.00031449,7]
[424791900,1781166650000,-1458.741,0.000315,30]
[424791898,1781166650000,-1209.0,0.000315,30]
[424791899,1781166650000,-643.226,0.000315,20]
[424791902,1781166650000,-1458.74,0.000315,20]
[424791904,1781166650000,-1512.62,0.000315,20]
[424791903,1781166650000,-1512.62,0.000315,20]
[424791907,1781166650000,-1512.62,0.000315,10]
[424791895,1781166650000,-19062.93641568,0.0003143,4]
[424791905,1781166650000,-1512.62,0.000315,20]
[424791916,1781166650000,-1575.74,0.00031628,33]
[424791908,1781166650000,-1512.62,0.000315,30]
[424791924,1781166650000,-916.80621202,0.00031732,2]
[424791922,1781166650000,-996.32113638,0.00031732,7]
[424791913,1781166650000,-150.315663,0.00031566,2]
[424791923,1781166650000,-1584.44552026,0.00031732,7]
[424791914,1781166650000,-165.68191016,0.00031578,2]
[424791915,1781166650000,-934.54498343,0.00031626,7]
[424791910,1781166650000,-250.0,0.00031507,30]
[424791912,1781166650000,-227.69,0.00031507,30]
[424791909,1781166650000,-1512.62,0.000315,20]
[424791906,1781166650000,-22363.506,0.000315,10]
[424791911,1781166650000,-388.0,0.00031507,30]
[424791967,1781166651000,-250.87440185,0.00032,120]
[424791965,1781166651000,-293.60571739,0.00032,120]
[424791964,1781166651000,-332.90641407,0.00032,120]
[424791963,1781166651000,-1780.65527062,0.00032,120]
[424791976,1781166651000,-428.53475174,0.00032,120]
[424791974,1781166651000,-1607.21338948,0.00032,120]
[424791981,1781166651000,-437.50135087,0.00032,120]
[424791978,1781166651000,-1454.36207282,0.00032,120]
[424791973,1781166651000,-199.66604064,0.00032,120]
[424791975,1781166651000,-179.43550379,0.00032,120]
[424791982,1781166651000,-350.22880355,0.00032,120]
[424791977,1781166651000,-1419.91241764,0.00032,120]
[424791979,1781166651000,-213.53598057,0.00032,120]
[424791986,1781166651000,-200.0,0.00032,120]
[424791980,1781166651000,-194.94433173,0.00032,120]
[424791968,1781166651000,-212.26999317,0.00032,120]
[424791953,1781166651000,-527.81115247,0.00031905,5]
[424791962,1781166651000,-185.20263389,0.00032,120]
[424791985,1781166651000,-1000.0,0.00032,30]
[424791951,1781166651000,-500.0,0.000319,120]
[424791959,1781166651000,-151.0,0.00031997,7]
[424791955,1781166651000,-1575.74,0.00031958,18]
[424791957,1781166651000,-151.0,0.00031968,2]
[424791956,1781166651000,-693.39197629,0.00031968,2]
[424791954,1781166651000,-228.0,0.0003193,10]
[424791958,1781166651000,-864.78058953,0.00031968,2]
[424791952,1781166651000,-700.0,0.000319,11]
[424791971,1781166651000,-187.46485328,0.00032,120]
[424791972,1781166651000,-508.81636042,0.00032,120]
[424791960,1781166651000,-50000.0,0.00032,10]
[424791961,1781166651000,-184.48961055,0.00032,120]
[424791970,1781166651000,-197.28995909,0.00032,120]
[424791966,1781166651000,-379.14646939,0.00032,120]
[424791969,1781166651000,-444.71012176,0.00032,120]
[424791983,1781166651000,-189.6143735,0.00032,120]
[424791999,1781166651000,-587.75085359,0.00032052,14]
[424791988,1781166651000,-200523.31813595,0.00032,30]
[424792006,1781166651000,-350.0,0.0003215,23]
[424792004,1781166651000,-350.0,0.00032101,6]
[424792009,1781166651000,-441.0,0.00032203,30]
[424792008,1781166651000,-251.0,0.00032203,30]
[424792013,1781166651000,-990.0,0.00032203,30]
[424792014,1781166651000,-1461.0,0.00032203,30]
[424792010,1781166651000,-246.0,0.00032203,30]
[424792012,1781166651000,-262.0,0.00032203,30]
[424792016,1781166651000,-185.0,0.00032203,30]
[424792015,1781166651000,-319.0,0.00032203,30]
[424792021,1781166651000,-61119.27471036,0.00032232,90]
[424792018,1781166651000,-318.0,0.00032203,30]
[424792020,1781166651000,-100000.0,0.00032232,120]
[424791984,1781166651000,-199.05206622,0.00032,120]
[424792017,1781166651000,-838.0,0.00032203,30]
[424792007,1781166651000,-561.96,0.0003217,7]
[424792019,1781166651000,-331.4,0.0003221,5]
[424792003,1781166651000,-40000.0,0.0003209,120]
[424791987,1781166651000,-502.0,0.00032,120]
[424792002,1781166651000,-155.85898861,0.00032082,30]
[424791990,1781166651000,-1791.43,0.00032,16]
[424791989,1781166651000,-5000.0,0.00032,2]
[424791997,1781166651000,-320.1989899,0.00032,120]
[424791991,1781166651000,-156.7,0.00032,30]
[424791992,1781166651000,-2500.0,0.00032,33]
[424791998,1781166651000,-155.85898862,0.00032027,30]
[424791994,1781166651000,-700.0,0.00032,2]
[424791995,1781166651000,-215.95576085,0.00032,30]
[424791996,1781166651000,-215.95576085,0.00032,10]
[424792011,1781166651000,-313.0,0.00032203,30]
[424792000,1781166651000,-596.34,0.00032055,5]
[424792005,1781166651000,-170.29328407,0.00032132,2]
[424792001,1781166651000,-227.69,0.00032055,30]
[424791993,1781166651000,-5000.0,0.00032,3]
[424792022,1781166652000,-151.0,0.00031,7]
[424792023,1781166652000,-156.0,0.00032232,90]
[424792025,1781166652000,-743.88449104,0.00032232,90]
[424792024,1781166652000,-2302.76577305,0.00032232,90]
[424792053,1781166653000,-1050.408206,0.00032232,7]
[424792061,1781166653000,-638.758781,0.00032232,7]
[424792055,1781166653000,-151.0,0.00032232,7]
[424792056,1781166653000,-1881.019781,0.00032232,7]
[424792059,1781166653000,-1881.019781,0.00032232,7]
[424792051,1781166653000,-1050.408206,0.00032232,7]
[424792054,1781166653000,-1050.408206,0.00032232,7]
[424792057,1781166653000,-1881.019781,0.00032232,7]
[424792058,1781166653000,-1881.019781,0.00032232,7]
[424792063,1781166653000,-638.758781,0.00032232,7]
[424792026,1781166653000,-2500.0,9.251e-05,2]
[424792060,1781166653000,-638.758781,0.00032232,7]
[424792064,1781166653000,-151.0,0.00032232,7]
[424792068,1781166653000,-323.180915,0.00032232,7]
[424792072,1781166653000,-391.895786,0.00032232,7]
[424792065,1781166653000,-323.180915,0.00032232,7]
[424792066,1781166653000,-323.180915,0.00032232,7]
[424792069,1781166653000,-391.895786,0.00032232,7]
[424792067,1781166653000,-323.180915,0.00032232,7]
[424792050,1781166653000,-151.0,0.00032232,7]
[424792062,1781166653000,-638.758781,0.00032232,7]
[424792052,1781166653000,-1050.408206,0.00032232,7]
[424792035,1781166653000,-151.0,0.00032232,7]
[424792044,1781166653000,-151.0,0.00032232,7]
[424792029,1781166653000,-500.1,0.00029836,3]
[424792037,1781166653000,-151.0,0.00032232,7]
[424792028,1781166653000,-838.0,0.00023,2]
[424792036,1781166653000,-151.0,0.00032232,7]
[424792027,1781166653000,-838.0,0.00022,2]
[424792031,1781166653000,-35678.07502555,0.00032232,90]
[424792032,1781166653000,-100000.0,0.00032232,30]
[424792030,1781166653000,-151.0,0.00031,7]
[424792033,1781166653000,-100000.0,0.00032232,60]
[424792043,1781166653000,-711.920535,0.00032232,7]
[424792034,1781166653000,-100000.0,0.00032232,7]
[424792049,1781166653000,-151.0,0.00032232,7]
[424792041,1781166653000,-711.920535,0.00032232,7]
[424792040,1781166653000,-711.920535,0.00032232,7]
[424792038,1781166653000,-151.0,0.00032232,7]
[424792042,1781166653000,-711.920535,0.00032232,7]
[424792045,1781166653000,-156.848041,0.00032232,7]
[424792048,1781166653000,-151.0,0.00032232,7]
[424792047,1781166653000,-151.0,0.00032232,7]
[424792046,1781166653000,-151.0,0.00032232,7]
[424792039,1781166653000,-159.968287,0.00032232,7]
[424792083,1781166653000,-227.69,0.00032329,30]
[424792070,1781166653000,-391.895786,0.00032232,7]
[424792071,1781166653000,-391.895786,0.00032232,7]
[424792096,1781166653000,-1575.74,0.00032515,30]
[424792104,1781166653000,-3992.941,0.000326,20]
[424792106,1781166653000,-3992.94,0.000326,30]
[424792105,1781166653000,-3992.941,0.000326,30]
[424792102,1781166653000,-1344.55,0.000326,20]
[424792103,1781166653000,-1563.5867,0.000326,30]
[424792108,1781166653000,-1664.256,0.000326,30]
[424792117,1781166653000,-578.4903,0.00032603,15]
[424792116,1781166653000,-578.4903,0.00032603,15]
[424792101,1781166653000,-1344.55,0.000326,30]
[424792109,1781166653000,-1664.25,0.000326,20]
[424792107,1781166653000,-1664.256,0.000326,10]
[424792110,1781166653000,-1320.7883,0.000326,20]
[424792112,1781166653000,-1511.74,0.000326,20]
[424792113,1781166653000,-1511.74,0.000326,10]
[424792111,1781166653000,-1511.28,0.000326,20]
[424792114,1781166653000,-1491.522,0.000326,20]
[424792115,1781166653000,-1491.52,0.000326,30]
[424792119,1781166653000,-578.4903,0.00032603,15]
[424792082,1781166653000,-350.0,0.00032307,6]
[424792118,1781166653000,-578.4903,0.00032603,15]
[424792098,1781166653000,-155.85898862,0.00032575,30]
[424792077,1781166653000,-161.0,0.00032237,11]
[424792099,1781166653000,-1800.39,0.00032588,2]
[424792080,1781166653000,-1066.0,0.00032254,30]
[424792100,1781166653000,-1344.55,0.000326,30]
[424792073,1781166653000,-151.0,0.00032232,7]
[424792081,1781166653000,-155.85898862,0.00032301,30]
[424792075,1781166653000,-151.0,0.00032232,7]
[424792076,1781166653000,-151.0,0.00032232,7]
[424792078,1781166653000,-310.0,0.00032254,30]
[424792079,1781166653000,-342.0,0.00032254,30]
[424792085,1781166653000,-1575.74,0.00032376,18]
[424792084,1781166653000,-397.5,0.00032349,30]
[424792074,1781166653000,-151.0,0.00032232,7]
[424792087,1781166653000,-150.0,0.00032383,2]
[424792086,1781166653000,-1575.74,0.00032378,33]
[424792090,1781166653000,-165.68191016,0.00032448,2]
[424792089,1781166653000,-155.85898861,0.00032438,30]
[424792091,1781166653000,-150.0,0.00032449,7]
[424792093,1781166653000,-1000.0,0.000325,30]
[424792092,1781166653000,-2925.68568041,0.00032498,40]
[424792094,1781166653000,-1424.52,0.000325,120]
[424792095,1781166653000,-1000.0,0.000325,7]
[424792097,1781166653000,-2353.0,0.00032557,11]
[424792088,1781166653000,-650.0,0.00032404,15]
[424792158,1781166654000,-151.0,0.00032874,14]